bitfinex/quotes_ETHUSD_20241130
["timestamp","ask_amount","ask_price","bid_price","bid_amount"]
[1732962450328,0.55,3673.3,3673.1,0.04480873]
[1732962450443,0.55,3673.3,3673.1,2.76727873]
[1732962450644,0.55,3673.6,3673.1,2.76727873]
[1732962450880,0.55,3673.4,3673.1,0.04480873]
[1732962451381,0.55,3673.4,3672.6,3.48555]
[1732962451382,0.55,3673.2,3672.9,2.72264]
[1732962451593,1.3105,3673.2,3672.7,2.72273]
[1732962451754,0.55,3673.0,3672.7,2.72273]
[1732962452148,0.55,3673.1,3672.7,2.72273]
[1732962452485,0.55,3672.9,3672.7,2.72273]
[1732962452693,0.55,3673.1,3672.7,2.72273]
[1732962452985,0.55,3672.9,3672.7,2.72273]
[1732962453286,0.55,3673.1,3672.7,2.72273]
[1732962454560,0.55,3673.1,3672.8,0.03593996]
[1732962454755,0.55,3673.1,3672.7,2.72273]
[1732962455086,0.55,3673.1,3672.8,0.03593996]
[1732962455485,0.55,3673.1,3672.7,2.72273]
[1732962455671,0.55,3673.1,3672.9,0.03590897]
[1732962455870,0.55,3673.1,3672.8,0.03593996]
[1732962456201,0.55,3673.1,3672.9,0.03590897]
[1732962456605,0.55,3673.1,3672.8,2.72271]
[1732962456763,0.55,3673.1,3673.0,0.03587797]
[1732962457098,0.55,3673.1,3673.0,2.72257]
[1732962457298,0.55,3673.1,3673.0,2.75844797]
[1732962457709,0.55,3673.1,3673.0,0.03587797]
[1732962458008,0.55,3673.1,3672.8,2.72271]
[1732962458296,0.55,3673.1,3673.0,0.03587797]
[1732962458497,0.55,3673.1,3672.9,0.03590897]
[1732962458673,0.55,3673.1,3673.0,0.03587797]
[1732962459072,0.55,3673.1,3672.8,2.72271]
[1732962459264,0.55,3673.1,3673.0,0.03587797]
[1732962459462,0.55,3673.1,3672.9,0.03590897]
[1732962459660,0.55,3673.1,3673.0,0.03587797]
[1732962460060,0.55,3673.1,3672.7,2.72279]
[1732962460262,0.7605,3673.2,3672.6,2.72285]
[1732962460263,0.55,3673.3,3673.0,0.03587797]
[1732962460574,0.55,3673.4,3672.8,2.72265]
[1732962460760,0.80221533,3673.4,3672.9,0.03590897]
[1732962460962,0.55,3673.2,3672.9,0.03590897]
[1732962461206,0.55,3673.4,3672.9,0.03590897]
[1732962461370,0.55,3673.2,3672.9,0.03590897]
[1732962461765,0.55,3673.3,3672.9,0.03590897]
[1732962461969,0.55,3673.1,3672.9,0.03590897]
[1732962462277,0.55,3673.3,3672.9,0.03590897]
[1732962464364,0.55,3673.4,3672.9,0.03590897]
[1732962464588,0.55,3673.4,3672.9,2.72264]
[1732962464804,0.55,3673.4,3673.2,2.72241]
[1732962465014,0.55,3673.5,3673.2,2.72241]
[1732962465191,0.55,3673.5,3673.0,2.72252]
[1732962465396,0.55,3673.3,3673.0,2.72252]
[1732962465710,0.55,3673.4,3673.0,2.72252]
[1732962465895,0.55,3673.3,3673.0,2.72252]
[1732962466467,0.55,3673.4,3673.0,2.72252]
[1732962466669,0.55,3673.4,3672.7,2.72277]
[1732962466870,0.80215197,3673.5,3672.9,2.72264]
[1732962467093,0.55,3673.5,3672.9,2.72264]
[1732962467812,0.55,3673.3,3672.9,2.72264]
[1732962468108,0.55,3673.5,3672.9,2.72264]
[1732962468306,0.55,3673.3,3672.9,2.72264]
[1732962468713,0.80224124,3673.5,3673.0,2.72253]
[1732962468885,0.55,3673.3,3673.0,2.72253]
[1732962469098,0.55,3673.3,3672.8,2.72265]
[1732962469298,3.5244429,3673.5,3672.8,2.72265]
[1732962469521,0.55,3673.3,3672.8,2.72265]
[1732962469830,0.55,3673.2,3672.8,2.72265]
[1732962470126,0.55,3673.2,3672.3,3.5460577]
[1732962470127,0.55,3672.9,3672.3,3.5460577]
[1732962470354,0.55,3672.9,3672.3,2.7309577]
[1732962471000,2.72286,3672.6,3672.3,0.0079077]
[1732962471201,0.55,3672.5,3672.3,0.0079077]
[1732962471498,3.27294,3672.5,3672.3,0.0079077]
[1732962471905,0.55,3672.5,3672.3,0.0079077]
[1732962472123,0.80229949,3672.5,3672.4,0.03042187]
[1732962472423,0.80225974,3672.5,3672.4,0.03042187]
[1732962472800,0.80225974,3672.5,3672.4,0.04056249]
[1732962472801,0.80225888,3672.5,3672.4,0.04056249]
[1732962473211,0.80225888,3672.5,3672.4,0.03042187]
[1732962473397,0.55,3672.5,3672.4,0.03042187]
[1732962474931,0.55,3672.5,3672.3,0.0079077]
[1732962475225,4.52640605,3672.5,3672.4,0.03042187]
[1732962475735,2.72301,3672.4,3672.3,0.0079077]
[1732962475906,3.52529017,3672.4,3672.3,0.0079077]
[1732962476338,5.30421872,3672.4,3672.3,0.0079077]
[1732962476652,6.70408126,3672.4,3672.3,0.0079077]
[1732962476831,6.67003667,3672.4,3672.3,0.0079077]
[1732962478444,15.60003667,3672.4,3672.3,0.0079077]
[1732962478799,14.66014996,3672.4,3672.3,0.0079077]
[1732962479338,13.50974767,3672.4,3672.3,0.0079077]
[1732962479539,14.33651772,3672.4,3672.3,0.0079077]
[1732962480249,14.33651772,3672.4,3670.8,2.72419]
[1732962480250,8.93,3671.6,3670.8,2.72419]
[1732962480480,8.93,3671.6,3670.6,2.72434]
[1732962480481,4.28946906,3671.5,3670.9,2.72411]
[1732962480681,0.25246906,3671.4,3670.9,2.72411]
[1732962480845,1.3133,3671.5,3670.9,2.72411]
[1732962481195,0.55,3671.3,3670.9,2.72411]
[1732962481477,0.25224115,3671.3,3670.7,2.72426]
[1732962481692,0.55,3671.2,3670.7,2.72426]
[1732962481988,0.55,3671.1,3670.7,2.72426]
[1732962482196,0.55,3671.2,3670.7,2.72426]
[1732962482657,0.55,3671.2,3670.8,2.72419]
[1732962482853,0.55,3671.4,3670.8,2.72419]
[1732962483069,0.80199829,3671.4,3670.8,2.72419]
[1732962483268,0.80199829,3671.4,3670.5,0.1]
[1732962483269,1.30364644,3671.4,3670.5,0.1]
[1732962483439,3.27395,3671.2,3670.5,0.1]
[1732962483645,3.27395,3671.2,3670.5,2.82437]
[1732962483853,0.55,3671.0,3670.5,0.1]
[1732962484487,0.55,3671.2,3670.5,0.1]
[1732962484782,4.03765,3670.6,3670.5,0.1]
[1732962486182,4.28926822,3670.6,3670.5,0.1]
[1732962486352,4.03765,3670.6,3670.5,0.1]
[1732962486558,1.3133,3670.6,3670.5,0.1]
[1732962486757,4.03765,3670.6,3670.5,0.1]
[1732962487091,4.28909783,3670.6,3670.5,0.1]
[1732962487242,4.03765,3670.6,3670.5,0.1]
[1732962487947,4.28897487,3670.6,3670.5,0.1]
[1732962488278,4.03765,3670.6,3670.5,0.1]
[1732962488646,4.36813739,3670.6,3670.5,0.1]
[1732962489094,13.29813739,3670.6,3670.5,0.1]
[1732962489870,16.29813739,3670.6,3670.5,0.1]
[1732962490365,16.54917521,3670.6,3670.5,0.1]
[1732962491598,4.03252,3670.1,3670.0,0.18]
[1732962491747,5.28123616,3670.1,3670.0,0.18]
[1732962491946,2.19196053,3670.1,3670.0,0.18]
[1732962492245,0.7578,3670.4,3670.0,0.18]
[1732962492653,0.03406103,3670.3,3670.0,0.18]
[1732962492854,2.72466,3670.2,3670.0,0.18]
[1732962493085,0.03406107,3670.1,3670.0,0.18]
[1732962493244,3.48231,3670.4,3670.0,0.18]
[1732962493710,0.55,3670.2,3670.0,0.18]
[1732962493857,2.72459,3670.3,3670.0,0.18]
[1732962493858,3.30878096,3670.1,3670.0,0.18]
[1732962494221,0.55,3670.1,3670.0,0.18]
[1732962494545,3.27472,3670.1,3670.0,0.18]
[1732962494746,0.55,3670.1,3670.0,0.18]
[1732962494972,0.55,3670.2,3670.0,0.18]
[1732962495172,2.72472,3670.1,3670.0,0.18]
[1732962495372,3.27472,3670.1,3670.0,0.18]
[1732962495564,3.60520739,3670.1,3670.0,0.18]
[1732962496483,3.27472,3670.1,3670.0,0.18]
[1732962498101,12.20472,3670.1,3670.0,0.18]
[1732962498250,12.53520739,3670.1,3670.0,0.18]
[1732962499493,13.58150102,3670.1,3670.0,0.18]
[1732962500000,13.25101363,3670.1,3670.0,0.18]
[1732962500789,13.58150102,3670.1,3670.0,0.18]
[1732962501086,14.52326015,3670.1,3670.0,0.18]
[1732962501250,14.19277276,3670.1,3670.0,0.18]
[1732962501992,2.72494,3669.9,3669.2,2.72538]
[1732962502153,3.27495,3669.8,3669.2,2.72538]
[1732962503238,0.55,3669.9,3669.4,2.7252]
[1732962503401,0.80154561,3669.9,3669.5,0.7606]
[1732962503792,0.55,3669.9,3669.7,2.72501]
[1732962504000,0.55,3669.9,3669.5,3.48576]
[1732962504423,0.55,3669.9,3669.6,2.72508]
[1732962504752,10.14913157,3670.0,3669.5,0.7606]
[1732962505342,10.14913157,3670.0,3669.8,2.72491]
[1732962505901,0.55,3669.9,3669.8,2.72491]
[1732962506123,0.55,3669.9,3669.6,2.72509]
[1732962506307,0.25195587,3669.8,3669.6,2.72509]
[1732962506510,0.55,3669.7,3669.5,2.7251]
[1732962506709,0.55,3669.9,3669.6,2.72509]
[1732962507035,0.55,3669.7,3669.6,2.71915719]
[1732962507238,0.55,3669.7,3669.5,2.7251]
[1732962507239,0.80209107,3669.7,3669.3,2.7253]
[1732962507439,0.55,3669.9,3669.4,2.72522]
[1732962507641,0.25221033,3669.8,3669.4,2.72522]
[1732962507844,0.80221033,3669.7,3669.4,2.72522]
[1732962508025,0.55,3669.9,3669.4,2.72522]
[1732962508211,0.55,3669.7,3669.4,2.72522]
[1732962508416,0.55,3669.7,3669.5,2.72516]
[1732962508602,0.55,3669.9,3669.5,2.72516]
[1732962508800,1.21913157,3670.0,3669.5,2.72516]
[1732962508801,0.55,3669.7,3669.6,2.72509]
[1732962509238,1.21913157,3670.0,3669.6,2.72509]
[1732962509239,0.55,3669.9,3669.6,2.72509]
[1732962509449,0.80235427,3669.8,3669.7,3.48556]
[1732962510426,0.80235427,3669.8,3669.7,2.72496]
[1732962511475,0.55,3669.9,3669.7,2.72496]
[1732962511628,0.80262726,3669.8,3669.7,2.72496]
[1732962514947,0.80309595,3669.8,3669.7,2.72496]
[1732962516053,0.55,3669.8,3669.7,2.72496]
[1732962516248,0.55,3669.9,3669.8,2.72492]
[1732962516448,1.20811492,3669.9,3669.8,2.72492]
[1732962516685,1.20810902,3669.9,3669.8,2.72492]
[1732962517390,1.20810902,3669.9,3669.8,2.72494]
[1732962518450,1.20810902,3669.9,3669.6,2.72505]
[1732962518692,0.55,3669.7,3669.6,2.72505]
[1732962518866,1.20810902,3669.7,3669.6,2.72505]
[1732962519588,0.80312049,3669.7,3669.6,2.72505]
[1732962520298,4.9e-07,3669.7,3669.6,4.099377]
[1732962520468,8.93,3670.7,3670.2,2.72461]
[1732962520662,0.42184664,3671.3,3671.2,2.7239]
[1732962520876,0.82691419,3671.3,3671.2,2.7239]
[1732962521085,0.40506755,3671.3,3671.2,2.7239]
[1732962521283,8.93,3671.5,3671.2,2.7239]
[1732962521488,1.52276078,3671.4,3671.2,2.7239]
[1732962521691,8.93,3671.5,3671.3,2.72383]
[1732962521910,8.93,3671.5,3671.4,2.72375]
[1732962522278,8.93,3672.2,3671.9,2.72337]
[1732962522488,9.26048739,3672.2,3671.9,2.72337]
[1732962522716,0.33048739,3672.1,3671.9,2.72337]
[1732962523015,1.42595204,3672.1,3671.9,2.72337]
[1732962523812,2.64437208,3672.1,3671.9,2.72337]
[1732962524322,0.55,3672.0,3671.8,2.72345]
[1732962526202,0.55,3672.0,3671.9,2.72338]
[1732962526412,1.21842004,3672.1,3672.0,2.72331]
[1732962526601,1.21842004,3672.1,3672.0,4.369632]
[1732962528229,8.93,3673.6,3673.2,2.72237]
[1732962528528,8.93,3673.6,3672.9,2.72264]
[1732962529025,9.26048739,3673.6,3672.9,2.72264]
[1732962529363,10.26177613,3673.6,3673.3,2.72232]
[1732962529614,10.26177613,3673.6,3673.1,2.72247]
[1732962529818,10.26177613,3673.6,3673.2,2.72241]
[1732962529819,0.55,3673.5,3673.2,2.72241]
[1732962531206,0.55,3673.5,3673.0,2.72257]
[1732962531522,0.55,3673.5,3672.9,2.72264]
[1732962531692,0.55,3673.5,3673.2,2.72241]
[1732962531882,0.33048739,3674.0,3673.0,2.72257]
[1732962532226,11.98232739,3674.0,3673.2,2.72237]
[1732962532379,11.98232739,3674.0,3673.0,2.72257]
[1732962532579,0.33048739,3673.9,3673.3,2.72231]
[1732962533176,0.55,3673.8,3673.4,2.72226]
[1732962533396,9.48,3673.8,3673.4,2.72226]
[1732962533602,0.55,3673.6,3673.4,2.72226]
[1732962534232,0.98104874,3673.7,3673.4,2.72226]
[1732962534233,0.55,3673.7,3673.5,2.72219]
[1732962534426,0.55,3673.7,3673.2,2.72234]
[1732962534588,0.55,3673.7,3673.4,2.72221]
[1732962534927,0.55,3673.7,3673.5,2.72219]
[1732962535221,0.55,3673.7,3673.3,2.72234]
[1732962535422,1.498,3673.7,3673.2,2.72234]
[1732962536578,0.55,3673.5,3672.5,0.7626]
[1732962536784,0.55,3673.5,3672.1,2.7232]
[1732962536785,0.55,3673.3,3672.6,2.72282]
[1732962537019,0.7542,3673.2,3672.6,2.72282]
[1732962537192,0.55,3673.1,3672.6,2.72282]
[1732962537911,0.55,3673.1,3672.7,2.72275]
[1732962538625,0.55,3673.1,3672.8,2.72269]
[1732962539320,0.55,3673.1,3672.7,2.72273]
[1732962539618,0.55,3673.1,3672.5,2.72293]
[1732962539929,0.55,3673.1,3672.8,2.72266]
[1732962540337,1.498,3673.1,3672.4,2.723]
[1732962540688,1.498,3673.1,3672.2,0.7626]
[1732962540838,0.55,3673.1,3672.8,2.72271]
[1732962541039,0.55,3673.2,3673.1,2.72249]
[1732962541338,8.93,3673.3,3673.2,2.72242]
[1732962542439,9.48,3673.3,3673.2,2.72242]
[1732962543245,0.55,3673.3,3673.2,2.72242]
[1732962544657,0.55,3673.2,3673.0,2.72254]
[1732962544945,0.55,3673.2,3673.1,2.72249]
[1732962551346,0.55,3673.5,3673.4,2.72227]
[1732962551554,0.55,3673.6,3673.5,2.72219]
[1732962551879,0.55,3674.0,3673.1,2.72249]
[1732962552179,0.25223949,3673.9,3673.8,2.72197]
[1732962553832,0.80223949,3673.9,3673.8,2.72197]
[1732962554671,0.25223949,3673.9,3673.8,2.72197]
[1732962554880,0.40354622,3674.6,3674.5,2.72145]
[1732962555081,0.8225,3675.0,3674.6,2.72138]
[1732962555235,0.39210476,3674.9,3674.6,2.72132]
[1732962555431,0.25248008,3674.8,3674.6,2.72132]
[1732962555676,0.25248008,3674.7,3674.4,2.72146]
[1732962555883,0.25248008,3674.6,3674.5,2.72145]
[1732962556187,0.80248008,3674.6,3674.5,2.72145]
[1732962557738,0.55,3674.5,3674.3,2.72154]
[1732962558134,3.26470777,3674.9,3674.1,2.72174]
[1732962558135,0.98793661,3674.8,3674.1,2.72174]
[1732962558448,0.55,3674.6,3674.3,2.72155]
[1732962558648,0.55,3674.4,3674.3,2.72155]
[1732962558866,0.80244781,3674.4,3674.3,2.72155]
[1732962559686,0.17020744,3675.1,3674.5,2.72143]
[1732962559915,0.8225,3674.9,3674.4,2.7215]
[1732962560204,0.8225,3674.9,3674.0,0.764]
[1732962560205,0.65613978,3674.8,3674.0,0.764]
[1732962560417,0.65613978,3674.7,3674.6,2.72138]
[1732962560594,0.65602202,3674.7,3674.6,2.72138]
[1732962560809,1.20602202,3674.7,3674.6,2.72138]
[1732962561606,0.55,3674.6,3674.4,2.72147]
[1732962561770,0.55,3674.6,3674.5,2.72145]
[1732962561966,0.80225426,3674.6,3674.5,2.72145]
[1732962562198,0.25225426,3674.6,3674.5,3.48545]
[1732962562523,11.65074,3675.5,3674.9,2.72115]
[1732962562806,0.17018917,3675.4,3674.9,2.72115]
[1732962563672,0.55,3675.3,3674.9,2.72115]
[1732962563873,0.55,3675.1,3674.9,2.72115]
[1732962564073,0.55,3675.3,3674.9,2.72115]
[1732962564273,0.55,3675.1,3675.0,2.72108]
[1732962564478,0.55,3675.1,3674.7,2.72129]
[1732962564704,0.2522031,3675.0,3674.7,2.72129]
[1732962564901,0.8022031,3674.9,3674.8,2.72123]
[1732962565868,0.8022031,3674.9,3674.7,2.72129]
[1732962566068,0.8022031,3674.8,3674.7,2.72129]
[1732962566268,0.55,3674.8,3674.7,2.72129]
[1732962566876,0.55,3674.7,3674.3,2.72158]
[1732962567106,0.55,3674.7,3674.4,2.72147]
[1732962567283,0.55,3674.9,3674.4,2.72147]
[1732962567480,0.55,3674.7,3674.1,2.72173]
[1732962567684,2.97324359,3674.8,3673.9,3.4859]
[1732962567685,3.27149,3674.5,3673.9,2.7219]
[1732962567884,0.55,3674.3,3673.9,2.7219]
[1732962568217,0.55,3674.1,3674.0,2.72182]
[1732962568592,0.80202832,3674.1,3674.0,2.72182]
[1732962569115,0.55,3674.4,3673.6,3.48611]
[1732962569412,0.55,3674.7,3674.3,2.72157]
[1732962569574,0.55,3674.5,3674.3,2.72157]
[1732962569778,0.8021442,3674.4,3674.3,2.72157]
[1732962572903,0.6661442,3674.4,3674.3,2.72157]
[1732962573709,0.55,3674.7,3674.5,2.72141]
[1732962573908,0.55,3675.0,3674.6,2.72138]
[1732962574109,0.55,3675.0,3674.2,0.7506]
[1732962574110,0.40365191,3674.8,3674.7,2.72129]
[1732962574314,0.40365191,3675.0,3674.7,2.72129]
[1732962574981,0.40365191,3675.3,3674.8,2.72121]
[1732962575197,0.72140628,3675.3,3674.8,2.72121]
[1732962575397,0.95366335,3675.2,3674.9,2.72112]
[1732962575705,0.55,3675.0,3674.9,2.72112]
[1732962576384,1.3283,3675.1,3673.8,3.7506]
[1732962576582,0.55,3674.9,3674.5,2.72138]
[1732962576884,0.55,3674.9,3674.6,2.72135]
[1732962577094,0.55,3674.9,3674.7,2.72129]
[1732962577297,0.55,3675.0,3674.1,2.72175]
[1732962577600,0.55,3674.8,3674.2,2.72166]
[1732962577985,0.55,3674.8,3674.3,2.7216]
[1732962578798,0.95366335,3674.8,3674.3,2.7216]
[1732962579346,0.55,3674.8,3674.3,2.7216]
[1732962579628,3.67490335,3674.8,3674.1,2.7217]
[1732962579824,3.67490335,3674.8,3674.2,2.72167]
[1732962580192,3.27124,3674.8,3674.2,2.72167]
[1732962580526,3.67490335,3674.8,3674.2,2.72167]
[1732962580882,3.27124,3674.8,3674.2,2.72167]
[1732962581284,3.67490335,3674.8,3674.2,2.72167]
[1732962581602,3.27124,3674.8,3674.2,2.72167]
[1732962581804,3.67490335,3674.8,3674.2,2.72167]
[1732962582000,1.3722,3674.6,3674.1,2.72175]
[1732962582209,1.3722,3674.6,3674.0,2.72179]
[1732962582738,1.77586335,3674.6,3674.0,2.72179]
[1732962582933,1.77586335,3674.6,3674.1,2.72173]
[1732962583602,0.55,3674.4,3674.1,2.72173]
[1732962584034,0.55,3674.5,3674.0,2.72182]
[1732962584203,0.55,3674.5,3674.1,2.72173]
[1732962584636,0.55,3674.5,3674.3,2.7216]
[1732962584838,0.55,3674.4,3674.3,2.7216]
[1732962585036,0.80280884,3674.4,3674.3,2.7216]
[1732962585550,0.80280767,3674.4,3674.3,2.72155]
[1732962585877,0.55,3674.3,3673.9,2.72188]
[1732962586037,0.25280767,3674.2,3674.0,2.72177]
[1732962586238,0.25280767,3674.1,3674.0,2.72177]
[1732962586448,0.80280767,3674.1,3674.0,2.72177]
[1732962588040,0.40447434,3674.4,3674.0,2.72177]
[1732962588041,0.55,3674.4,3674.2,2.72165]
[1732962588203,0.25271388,3674.3,3674.2,2.72165]
[1732962588517,0.80271388,3674.3,3674.2,2.72165]
[1732962588723,0.25271552,3674.3,3674.2,2.72165]
[1732962588933,0.80271552,3674.3,3674.2,2.72165]
[1732962589130,0.55,3674.2,3673.8,2.72196]
[1732962589318,0.55,3674.2,3674.1,2.72175]
[1732962589511,0.25269674,3674.2,3674.1,2.72175]
[1732962589728,0.80269674,3674.2,3674.1,2.72175]
[1732962589964,0.80269674,3674.2,3673.5,2.72217]
[1732962589965,0.8222,3674.0,3673.5,2.72217]
[1732962590120,0.55,3673.9,3673.5,2.72217]
[1732962590322,0.55,3673.7,3673.5,2.72217]
[1732962590536,0.55,3673.9,3673.5,2.72217]
[1732962590891,0.55,3673.7,3673.5,2.72217]
[1732962591156,0.55,3673.9,3673.6,2.72205]
[1732962591457,0.55,3673.9,3673.5,2.72217]
[1732962592319,0.55,3673.9,3673.6,2.72211]
[1732962592726,1.21843841,3674.4,3674.0,2.72175]
[1732962592952,0.25258528,3674.3,3674.1,2.72172]
[1732962593262,8.93,3674.5,3674.1,2.72172]
[1732962593473,0.25260614,3674.4,3674.3,2.72159]
[1732962593962,0.25260614,3674.4,3674.1,2.72172]
[1732962594162,0.25260614,3674.3,3674.1,2.72172]
[1732962594362,0.8141,3674.6,3674.1,2.72172]
[1732962594568,0.55,3674.4,3674.1,2.72172]
[1732962594872,0.55,3674.2,3674.1,2.72172]
[1732962595024,0.80263374,3674.2,3674.1,2.72172]
[1732962595230,0.55,3674.5,3674.1,2.72172]
[1732962595468,0.55,3674.3,3674.2,2.72166]
[1732962595672,0.80265332,3674.3,3673.9,2.72189]
[1732962595964,0.55,3674.1,3673.8,0.8166]
[1732962596163,0.55,3674.1,3674.0,2.72182]
[1732962596371,0.25268646,3674.1,3674.0,2.72178]
[1732962596665,0.80268646,3674.1,3674.0,2.72178]
[1732962597070,0.80268646,3674.1,3673.8,2.72197]
[1732962597287,1.371,3674.0,3673.8,2.72197]
[1732962597677,1.371,3674.0,3673.4,2.72221]
[1732962598067,0.55,3673.6,3672.9,2.72257]
[1732962598367,0.821,3673.1,3672.5,2.72292]
[1732962598701,0.55,3673.0,3672.7,2.72278]
[1732962599687,0.55,3673.0,3672.9,2.72264]
[1732962599854,0.55,3673.3,3672.9,2.72264]
[1732962600282,0.55,3673.3,3673.0,2.72254]
[1732962600666,1.22524531,3673.7,3673.1,2.72246]
[1732962600849,0.55,3673.6,3673.4,2.72225]
[1732962601052,0.55,3673.6,3673.2,2.72239]
[1732962601288,0.55,3673.4,3673.2,2.72239]
[1732962601501,0.55,3673.6,3673.2,2.72239]
[1732962602003,0.55,3673.6,3673.0,0.7537]
[1732962602288,0.55,3673.7,3673.6,2.72212]
[1732962602601,1.12835111,3673.8,3673.7,2.72205]
[1732962604149,1.12835111,3673.8,3673.7,3.341837]
[1732962604749,1.12835111,3673.8,3673.7,2.72205]
[1732962605595,1.12835111,3673.8,3673.7,3.47575]
[1732962609776,2.72146,3674.5,3673.7,0.7537]
[1732962609994,0.80262527,3674.4,3674.0,2.72181]
[1732962610192,0.55,3674.2,3674.0,2.72181]
[1732962610712,0.55,3674.5,3674.1,2.72175]
[1732962610865,0.25264968,3674.4,3673.8,2.72196]
[1732962611071,0.80264968,3674.3,3673.8,2.72196]
[1732962611416,0.80264968,3674.3,3673.1,2.08433706]
[1732962611417,0.55,3674.0,3672.9,0.7617]
[1732962611564,0.55,3674.0,3673.4,2.72226]
[1732962611772,0.55,3674.1,3673.5,2.72219]
[1732962612110,0.55,3673.2,3672.7,2.72278]
[1732962612316,0.55,3673.0,3672.7,2.72278]
[1732962612672,0.55,3673.0,3672.5,2.72287]
[1732962613115,0.55,3673.0,3671.8,2.72341]
[1732962613116,3.30662182,3673.0,3672.4,2.72301]
[1732962613277,0.55,3672.8,3672.4,2.72301]
[1732962613478,0.8232,3672.7,3672.2,2.7231]
[1732962613720,0.55,3672.6,3672.2,2.7231]
[1732962613872,0.55,3672.6,3672.0,2.7233]
[1732962614075,0.55,3672.6,3672.3,2.72307]
[1732962614375,0.55,3672.6,3672.1,2.72323]
[1732962614716,0.55,3672.6,3671.9,2.72337]
[1732962614898,0.25231558,3672.5,3671.9,2.72337]
[1732962615108,0.55,3672.6,3671.9,2.72337]
[1732962615276,0.55,3672.6,3671.5,2.84603706]
[1732962615277,0.55,3672.6,3672.1,2.72318]
[1732962615814,0.55,3672.6,3671.5,2.84603706]
[1732962616025,0.55,3672.6,3672.3,2.72302]
[1732962616498,0.55,3672.6,3671.7,2.72353]
[1732962616499,0.55,3672.6,3672.4,2.72301]
[1732962616878,0.25213606,3672.8,3672.3,0.7617]
[1732962617087,0.25213606,3672.8,3672.7,2.72279]
[1732962617319,0.8232,3672.7,3671.6,3.00816371]
[1732962617612,2.75690822,3672.6,3671.9,2.72331]
[1732962617812,0.25205129,3672.5,3671.9,2.72332]
[1732962617976,0.55,3672.5,3672.0,2.7233]
[1732962618178,0.55,3672.6,3672.1,2.72322]
[1732962618609,0.55,3672.6,3672.2,2.72315]
[1732962618920,0.55,3672.6,3672.3,2.72308]
[1732962619081,0.25213606,3672.8,3672.2,2.995465]
[1732962619082,0.25213606,3672.8,3672.6,2.72286]
[1732962619412,0.25205544,3673.1,3672.8,2.72269]
[1732962619615,1.07518061,3673.2,3672.8,2.72269]
[1732962619839,0.8232,3673.2,3672.8,2.72269]
[1732962620184,0.8232,3673.2,3672.7,2.72277]
[1732962620432,0.55,3673.1,3672.8,2.72266]
[1732962620603,0.55,3673.1,3672.7,2.72277]
[1732962620786,0.8232,3673.2,3672.9,2.72258]
[1732962620988,1.07515455,3673.6,3672.5,2.72294]
[1732962621238,1.07515455,3673.6,3672.3,2.84603706]
[1732962621239,1.07515455,3673.6,3673.3,2.72228]
[1732962621542,0.8232,3673.6,3673.3,2.72228]
[1732962622608,0.55,3673.5,3673.1,2.72248]
[1732962622840,0.55,3673.5,3673.4,2.72227]
[1732962623138,0.8232,3674.2,3673.6,2.72206]
[1732962623343,0.25201741,3674.1,3673.4,2.72221]
[1732962623507,0.2520438,3674.0,3673.5,2.72219]
[1732962623841,3.54489,3674.2,3673.5,2.72219]
[1732962623999,0.25204458,3674.1,3673.5,2.72219]
[1732962624206,0.25204458,3674.0,3673.5,2.72219]
[1732962624513,0.55,3673.8,3673.5,2.72219]
[1732962624701,0.55,3674.0,3673.6,2.7221]
[1732962625035,0.55,3674.1,3673.6,2.7221]
[1732962625403,0.80207337,3674.1,3673.6,2.7221]
[1732962625834,0.55,3674.1,3673.8,2.72195]
[1732962626342,3.1247647,3674.6,3673.8,2.72195]
[1732962626343,0.8232,3674.6,3673.8,2.72197]
[1732962626541,0.8232,3674.6,3674.1,2.7217]
[1732962626856,0.8232,3674.6,3673.9,2.7219]
[1732962627006,0.8232,3674.6,3674.2,2.72166]
[1732962627226,0.8232,3674.6,3673.8,2.72197]
[1732962627551,2.97359589,3674.5,3673.8,2.72197]
[1732962627920,2.72151,3674.5,3673.7,2.72197]
[1732962628126,0.55,3674.3,3673.7,2.72202]
[1732962628335,0.55,3674.5,3673.8,2.72192]
[1732962628531,0.55,3674.3,3673.5,2.72219]
[1732962628734,0.8232,3674.6,3673.4,0.7617]
[1732962628735,0.55,3674.1,3673.7,2.72204]
[1732962628936,0.55,3674.3,3673.7,2.722]
[1732962629141,0.55,3674.4,3673.8,2.72197]
[1732962630023,0.8232,3674.6,3673.9,2.7219]
[1732962630223,0.25205464,3674.7,3674.2,2.72161]
[1732962630417,0.25204876,3674.8,3674.2,2.72161]
[1732962630754,0.25204715,3674.8,3674.4,2.72146]
[1732962630915,1.07525547,3674.9,3674.5,2.72143]
[1732962631255,0.8232,3674.9,3674.5,2.72143]
[1732962631465,0.8232,3674.9,3674.5,2.72144]
[1732962631953,0.8232,3674.9,3674.6,2.72138]
[1732962632861,0.8232,3674.9,3674.0,0.7617]
[1732962632862,0.55,3674.8,3674.2,2.72164]
[1732962633061,0.55,3674.8,3674.3,3.342059]
[1732962633261,0.55,3674.8,3674.3,0.620509]
[1732962633432,0.55,3674.8,3674.5,2.72145]
[1732962634832,0.55,3674.8,3674.3,3.342069]
[1732962635429,0.55,3674.8,3674.3,0.620509]
[1732962635858,0.55,3674.8,3674.3,3.342109]